fUSD/lending_fUSD_20240116
["ID","MTS","AMOUNT","RATE_DAILY","PERIOD"]
[311786398,1705389053013,-309.90412142,0.00022537,2]
[311786399,1705389053022,-336.95931166,0.00022537,2]
[311786400,1705389053031,-159.01,0.00022537,2]
[311786401,1705389053040,-160.56,0.0002254,2]
[311786402,1705389053049,-300.0,0.000226,8]
[311786403,1705389053071,-153.24,0.00022644,2]
[311786404,1705389053081,-679.42,0.00022646,2]
[311786405,1705389053091,-2715.87,0.00022646,2]
[311786406,1705389053102,-1314.11,0.00022646,2]
[311786407,1705389053112,-500.0,0.00022646,2]
[311786408,1705389053122,-500.0,0.00022646,2]
[311786409,1705389053132,-1099.22,0.00022646,2]
[311786410,1705389053142,-627.17,0.00022646,2]
[311786411,1705389053154,-762.73,0.00022646,2]
[311786412,1705389053164,-500.0,0.00022646,2]
[311786413,1705389053174,-796.08,0.00022646,2]
[311786414,1705389053184,-9851.46,0.00022646,2]
[311786415,1705389053194,-852.7,0.00022646,2]
[311786416,1705389053204,-742.45,0.00022646,2]
[311786417,1705389053215,-2060.06,0.00022646,2]
[311786418,1705389053225,-810.78,0.00022646,2]
[311786419,1705389053235,-543.06,0.00022646,2]
[311786420,1705389053246,-859.73,0.00022646,2]
[311786421,1705389053256,-500.0,0.00022646,2]
[311786422,1705389053267,-901.73,0.00022646,2]
[311786423,1705389053277,-1164.62,0.00022646,2]
[311786424,1705389053288,-534.41,0.00022646,2]
[311786425,1705389053299,-715.54,0.00022646,2]
[311786426,1705389053309,-1053.36,0.00022646,2]
[311786427,1705389053319,-507.29,0.00022646,2]
[311786428,1705389053329,-585.85,0.00022646,2]
[311786429,1705389053339,-1312.01,0.00022646,2]
[311786430,1705389053349,-554.74,0.00022647,2]
[311786431,1705389053359,-500.0,0.00022647,2]
[311786432,1705389053369,-1598.66,0.00022647,2]
[311786433,1705389053379,-500.0,0.00022647,2]
[311786434,1705389053389,-500.0,0.00022647,2]
[311786435,1705389053399,-500.0,0.00022647,2]
[311786436,1705389053409,-594.88162251,0.00022647,2]
[311786437,1705389053418,-500.0,0.00022647,2]
[311786438,1705389053428,-500.0,0.00022647,2]
[311786439,1705389053439,-500.0,0.00022647,2]
[311786440,1705389053449,-500.0,0.00022647,2]
[311786441,1705389053459,-500.0,0.00022647,2]
[311786442,1705389053468,-500.0,0.00022647,2]
[311786443,1705389053478,-500.0,0.00022647,2]
[311786444,1705389053488,-213.21273938,0.00022647,2]
[311786445,1705389053498,-500.0,0.00022647,2]
[311786446,1705389053507,-500.0,0.00022647,2]
[311786447,1705389053517,-500.0,0.00022647,2]
[311786448,1705389053526,-500.0,0.00022647,2]
[311786449,1705389053536,-500.0,0.00022647,2]
[311786450,1705389053546,-500.0,0.00022647,2]
[311786451,1705389053560,-500.0,0.00022647,2]
[311786452,1705389053570,-500.0,0.00022647,2]
[311786453,1705389053581,-500.0,0.00022647,2]
[311786454,1705389053591,-500.0,0.00022647,2]
[311786455,1705389053601,-500.0,0.00022647,2]
[311786456,1705389053613,-500.0,0.00022647,2]
[311786457,1705389053627,-250.0,0.00022647,2]
[311786458,1705389053638,-482.65372714,0.00022647,2]
[311786459,1705389053648,-500.0,0.00022647,2]
[311786460,1705389053658,-500.0,0.00022647,2]
[311786461,1705389053667,-642.24,0.00022647,2]
[311786462,1705389053678,-500.0,0.00022647,2]
[311786463,1705389053689,-500.0,0.00022647,2]
[311786464,1705389053699,-500.0,0.00022647,2]
[311786465,1705389053709,-500.0,0.00022647,2]
[311786466,1705389053719,-500.0,0.00022647,2]
[311786467,1705389053730,-500.0,0.00022647,2]
[311786468,1705389053741,-500.0,0.00022647,2]
[311786469,1705389053752,-500.0,0.00022647,2]
[311786470,1705389053762,-500.0,0.00022647,2]
[311786471,1705389053772,-500.0,0.00022647,2]
[311786472,1705389053783,-500.0,0.00022647,2]
[311786473,1705389053793,-500.0,0.00022647,2]
[311786474,1705389053804,-629.73,0.00022647,2]
[311786475,1705389053814,-563.55,0.00022647,2]
[311786476,1705389053824,-500.0,0.00022647,2]
[311786477,1705389053834,-500.0,0.00022647,2]
[311786478,1705389053844,-500.0,0.00022647,2]
[311786479,1705389053854,-500.0,0.00022647,2]
[311786480,1705389053864,-500.0,0.00022647,2]
[311786481,1705389053875,-500.0,0.00022647,2]
[311786482,1705389053885,-500.0,0.00022647,2]
[311786483,1705389053895,-500.0,0.00022647,2]
[311786484,1705389053905,-500.0,0.00022647,2]
[311786485,1705389053915,-500.0,0.00022647,2]
[311786486,1705389053926,-500.0,0.00022647,2]
[311786487,1705389053936,-500.0,0.00022647,2]
[311786488,1705389053948,-500.0,0.00022647,2]
[311786489,1705389053958,-820.93,0.00022647,2]
[311786490,1705389053968,-559.98,0.00022647,2]
[311786491,1705389053978,-500.0,0.00022647,2]
[311786492,1705389053988,-500.0,0.00022647,2]
[311786493,1705389053998,-500.0,0.00022647,2]
[311786494,1705389054009,-500.0,0.00022647,2]
[311786495,1705389054019,-812.34,0.00022647,2]
[311786496,1705389054028,-652.56,0.00022647,2]
[311786497,1705389054039,-577.87,0.00022647,2]
[311786498,1705389054049,-500.0,0.00022647,2]
[311786499,1705389054063,-500.0,0.00022647,2]
[311786500,1705389054075,-673.79,0.00022647,2]
[311786501,1705389054085,-500.0,0.00022647,2]
[311786502,1705389054095,-2792.81,0.00022647,2]
[311786503,1705389054106,-1818.94,0.00022647,2]
[311786504,1705389054117,-500.0,0.00022647,2]
[311786505,1705389054128,-611.28,0.00022647,2]
[311786506,1705389054138,-538.31,0.00022647,2]
[311786507,1705389054148,-500.0,0.00022647,2]
[311786508,1705389054158,-500.0,0.00022647,2]
[311786509,1705389054169,-500.0,0.00022647,2]
[311786510,1705389054181,-249.47948232,0.00022647,2]
[311786511,1705389054191,-1111.57,0.00022647,2]
[311786512,1705389054203,-500.0,0.00022647,2]
[311786513,1705389054215,-608.37,0.00022647,2]
[311786514,1705389054225,-579.44,0.00022647,2]
[311786515,1705389054236,-567.39,0.00022647,2]
[311786516,1705389054246,-500.0,0.00022647,2]
[311786517,1705389054257,-687.81,0.00022647,2]
[311786518,1705389054268,-500.0,0.00022647,2]
[311786519,1705389054279,-521.29,0.00022647,2]
[311786520,1705389054289,-535.32,0.00022647,2]
[311786521,1705389054300,-500.0,0.00022647,2]
[311786522,1705389054310,-980.59,0.00022647,2]
[311786523,1705389054320,-500.0,0.00022647,2]
[311786524,1705389054330,-334.5259425,0.00022647,2]
[311786525,1705389054340,-500.0,0.00022647,2]
[311786526,1705389054350,-500.0,0.00022647,2]
[311786527,1705389054360,-1119.73,0.00022647,2]
[311786528,1705389054370,-588.4,0.00022647,2]
[311786529,1705389054380,-613.58,0.00022647,2]
[311786530,1705389054393,-670.35,0.00022647,2]
[311786531,1705389054402,-634.29,0.00022647,2]
[311786532,1705389054412,-500.0,0.00022647,2]
[311786533,1705389054423,-500.0,0.00022647,2]
[311786534,1705389054433,-561.27,0.00022647,2]
[311786535,1705389054443,-500.0,0.00022647,2]
[311786536,1705389054453,-500.0,0.00022647,2]
[311786537,1705389054463,-500.0,0.00022647,2]
[311786538,1705389054472,-500.0,0.00022647,2]
[311786539,1705389054482,-1103.14,0.00022647,2]
[311786540,1705389054492,-616.85,0.00022647,2]
[311786541,1705389054502,-500.0,0.00022647,2]
[311786542,1705389054511,-500.0,0.00022647,2]
[311786543,1705389054521,-500.0,0.00022647,2]
[311786544,1705389054530,-803.55,0.00022647,2]
[311786545,1705389054540,-537.56,0.00022647,2]
[311786546,1705389054550,-534.79,0.00022647,2]
[311786547,1705389054560,-649.28,0.00022647,2]
[311786548,1705389054570,-267.09573947,0.00022647,2]
[311786549,1705389054580,-500.0,0.00022647,2]
[311786550,1705389054589,-500.0,0.00022647,2]
[311786551,1705389054599,-500.0,0.00022647,2]
[311786552,1705389054610,-461.12,0.00022647,2]
[311786553,1705389054621,-583.37,0.00022647,2]
[311786554,1705389054632,-904.56,0.00022647,2]
[311786555,1705389054641,-505.33,0.00022647,2]
[311786556,1705389054651,-500.0,0.00022647,2]
[311786557,1705389054660,-524.12,0.00022647,2]
[311786558,1705389054670,-500.0,0.00022647,2]
[311786559,1705389054680,-500.0,0.00022647,2]
[311786560,1705389054690,-500.0,0.00022647,2]
[311786561,1705389054699,-935.79,0.00022647,2]
[311786562,1705389054709,-507.18,0.00022647,2]
[311786563,1705389054718,-500.0,0.00022647,2]
[311786564,1705389054728,-528.09,0.00022647,2]
[311786565,1705389054737,-540.06,0.00022647,2]
[311786566,1705389054747,-796.1,0.00022647,2]
[311786567,1705389054757,-891.65,0.00022647,2]
[311786568,1705389054767,-500.0,0.00022647,2]
[311786569,1705389054776,-627.76,0.00022647,2]
[311786570,1705389054786,-1336.84,0.00022647,2]
[311786571,1705389054796,-500.0,0.00022647,2]
[311786572,1705389054806,-514.32,0.00022647,2]
[311786573,1705389054816,-500.0,0.00022647,2]
[311786574,1705389054825,-500.0,0.00022647,2]
[311786575,1705389054835,-833.0,0.00022647,2]
[311786576,1705389054845,-719.15,0.00022647,2]
[311786577,1705389054855,-653.74,0.00022647,2]
[311786578,1705389054865,-550.33,0.00022647,2]
[311786579,1705389054874,-532.48,0.00022647,2]
[311786580,1705389054885,-927.98,0.00022647,2]
[311786581,1705389054894,-500.0,0.00022647,2]
[311786582,1705389054904,-300.0,0.00022647,2]
[311786583,1705389054913,-1537.09,0.00022647,2]
[311786584,1705389054923,-500.0,0.00022647,2]
[311786585,1705389054933,-2175.83,0.00022647,2]
[311786586,1705389054942,-500.0,0.00022647,2]
[311786587,1705389054952,-500.0,0.00022647,2]
[311786588,1705389054962,-500.0,0.00022647,2]
[311786589,1705389054971,-476.10209459,0.00022647,2]
[311786590,1705389054981,-1065.15,0.00022647,2]
[311786591,1705389054991,-500.0,0.00022647,2]
[311786592,1705389055001,-572.16,0.00022647,2]
[311786593,1705389055011,-500.0,0.00022647,2]
[311786594,1705389055467,-595.44,0.00022647,2]
[311786595,1705389055484,-623.13,0.00022647,2]
[311786596,1705389055495,-524.59,0.00022647,2]
[311786597,1705389055505,-593.29,0.00022647,2]
[311786598,1705389055515,-1236.1,0.00022647,2]
[311786599,1705389055526,-2015.88,0.00022647,2]
[311786600,1705389055536,-500.0,0.00022647,2]
[311786601,1705389055545,-500.0,0.00022647,2]
[311786602,1705389055556,-500.0,0.00022647,2]
[311786603,1705389055570,-631.39,0.00022647,2]
[311786604,1705389055580,-737.54,0.00022647,2]
[311786605,1705389055589,-922.84,0.00022647,2]
[311786606,1705389055599,-749.24,0.00022647,2]
[311786607,1705389055609,-500.0,0.00022647,2]
[311786608,1705389055620,-517.05,0.00022647,2]
[311786609,1705389055633,-500.0,0.00022647,2]
[311786610,1705389055643,-459.76933486,0.00022647,2]
[311786611,1705389055653,-865.96,0.00022647,2]
[311786612,1705389055663,-527.4,0.00022647,2]
[311786613,1705389055673,-848.32,0.00022647,2]
[311786614,1705389055683,-500.0,0.00022647,2]
[311786615,1705389055693,-500.0,0.00022647,2]
[311786616,1705389055703,-729.44,0.00022647,2]
[311786617,1705389055713,-1536.28,0.00022647,2]
[311786618,1705389055722,-295.12,0.00022647,2]
[311786619,1705389055732,-500.0,0.00022647,2]
[311786620,1705389055742,-500.0,0.00022647,2]
[311786621,1705389055751,-508.92,0.00022647,2]
[311786622,1705389055761,-500.0,0.00022647,2]
[311786623,1705389055772,-715.61,0.00022647,2]
[311786624,1705389055781,-500.0,0.00022647,2]
[311786625,1705389055791,-940.32,0.00022647,2]
[311786626,1705389055801,-761.57,0.00022647,2]
[311786627,1705389055812,-500.0,0.00022647,2]
[311786628,1705389055821,-500.0,0.00022647,2]
[311786629,1705389055831,-500.0,0.00022647,2]
[311786630,1705389055841,-500.0,0.00022647,2]
[311786631,1705389055850,-500.0,0.00022647,2]
[311786632,1705389055859,-748.62,0.00022647,2]
[311786633,1705389055870,-500.0,0.00022647,2]
[311786634,1705389055880,-565.61,0.00022647,2]
[311786635,1705389055889,-500.0,0.00022647,2]
[311786636,1705389055899,-881.1,0.00022647,2]
[311786637,1705389055909,-662.96,0.00022647,2]
[311786638,1705389055918,-500.0,0.00022647,2]
[311786639,1705389055928,-500.0,0.00022647,2]
[311786640,1705389055938,-767.72,0.00022647,2]
[311786641,1705389055948,-504.8,0.00022647,2]
[311786642,1705389055959,-500.0,0.00022647,2]
[311786643,1705389055968,-1452.23,0.00022647,2]
[311786644,1705389055978,-649.77,0.00022647,2]
[311786645,1705389055987,-500.0,0.00022647,2]
[311786646,1705389055999,-573.13,0.00022647,2]
[311786647,1705389056011,-876.99,0.00022647,2]
[311786648,1705389056021,-500.0,0.00022647,2]
[311786649,1705389056030,-2508.26,0.00022647,2]
[311786650,1705389056040,-13946.1,0.00022647,2]
[311786651,1705389056050,-599.95,0.00022647,2]
[311786652,1705389056060,-500.0,0.00022647,2]
[311786653,1705389056071,-581.23,0.00022647,2]
[311786654,1705389056080,-500.0,0.00022647,2]
[311786655,1705389056090,-305.67875758,0.00022647,2]
[311786656,1705389056100,-500.0,0.00022647,2]
[311786657,1705389056110,-500.0,0.00022647,2]
[311786658,1705389056120,-500.0,0.00022647,2]
[311786659,1705389056130,-500.0,0.00022647,2]
[311786660,1705389056140,-567.83,0.00022647,2]
[311786661,1705389056150,-500.0,0.00022647,2]
[311786662,1705389056159,-730.06,0.00022647,2]
[311786663,1705389056169,-157.441636,0.00022647,7]
[311786664,1705389056179,-151.0,0.00022647,7]
[311786665,1705389056189,-151.0,0.00022647,7]
[311786666,1705389056199,-151.0,0.00022647,7]
[311786667,1705389056209,-151.0,0.00022647,7]
[311786668,1705389056218,-152.199543,0.00022647,7]
[311786669,1705389056228,-151.0,0.00022647,7]
[311786670,1705389056243,-257.733119,0.00022647,7]
[311786671,1705389056253,-151.0,0.00022647,7]
[311786672,1705389056263,-151.0,0.00022647,7]
[311786673,1705389056274,-151.0,0.00022647,7]
[311786674,1705389056284,-151.0,0.00022647,7]
[311786675,1705389056294,-151.0,0.00022647,7]
[311786676,1705389056304,-373.34943849,0.00022655,2]
[311786677,1705389056314,-196.41,0.00022656,2]
[311786678,1705389056325,-458.74,0.00022656,2]
[311786679,1705389056335,-284.027,0.00022656,2]
[311786680,1705389056345,-1118.954,0.00022656,2]
[311786681,1705389056355,-235.0,0.00022656,2]
[311786682,1705389056365,-319.0,0.00022656,2]
[311786683,1705389056375,-508.0,0.00022656,2]
[311786684,1705389056385,-878.0,0.00022656,2]
[311786685,1705389056395,-159.01,0.00022679,2]
[311786686,1705389056405,-1958.08,0.00022689,2]
[311786687,1705389056416,-500.0,0.00022689,2]
[311786688,1705389056426,-818.4,0.00022689,2]
[311786689,1705389056436,-2867.85,0.00022689,2]
[311786690,1705389056446,-1188.92,0.00022689,2]
[311786691,1705389056455,-837.18,0.00022689,2]
[311786692,1705389056465,-500.0,0.00022689,2]
[311786693,1705389056476,-2844.99,0.00022689,2]
[311786694,1705389056485,-1214.03,0.00022689,2]
[311786695,1705389056497,-765.71,0.00022689,2]
[311786696,1705389056506,-977.39,0.00022689,2]
[311786697,1705389056516,-500.0,0.00022689,2]
[311786698,1705389056527,-529.97,0.00022689,2]
[311786699,1705389056537,-1185.23,0.00022689,2]
[311786700,1705389056547,-500.0,0.00022689,2]
[311786701,1705389056558,-932.14,0.00022689,2]
[311786702,1705389056569,-2860.72,0.00022689,2]
[311786703,1705389056579,-1519.62,0.00022689,2]
[311786704,1705389056588,-1540.56,0.00022689,2]
[311786705,1705389056598,-565.5,0.00022689,2]
[311786706,1705389056608,-824.96,0.00022689,2]
[311786707,1705389056618,-500.0,0.0002269,2]
[311786708,1705389056630,-500.0,0.0002269,2]
[311786709,1705389056640,-510.15648782,0.0002269,2]
[311786710,1705389056650,-500.0,0.0002269,2]
[311786711,1705389056660,-500.0,0.0002269,2]
[311786712,1705389056670,-500.0,0.0002269,2]
[311786713,1705389056679,-500.0,0.0002269,2]
[311786714,1705389056689,-500.0,0.0002269,2]
[311786715,1705389056699,-500.0,0.0002269,2]
[311786716,1705389056709,-500.0,0.0002269,2]
[311786717,1705389056720,-500.0,0.0002269,2]
[311786718,1705389056731,-500.0,0.0002269,2]
[311786719,1705389056742,-500.0,0.0002269,2]
[311786720,1705389056752,-500.0,0.0002269,2]
[311786721,1705389056764,-500.0,0.0002269,2]
[311786722,1705389056774,-500.0,0.0002269,2]
[311786723,1705389056783,-500.0,0.0002269,2]
[311786724,1705389056794,-382.07130727,0.0002269,2]
[311786725,1705389056804,-6187.3,0.0002269,2]
[311786726,1705389056814,-8721.37,0.0002269,2]
[311786727,1705389056823,-500.0,0.0002269,2]
[311786728,1705389056833,-500.0,0.0002269,2]
[311786729,1705389056844,-1911.56,0.0002269,2]
[311786730,1705389056855,-1238.94,0.0002269,2]
[311786731,1705389056866,-1115.25,0.0002269,2]
[311786732,1705389056876,-500.0,0.0002269,2]
[311786733,1705389056886,-4689.37,0.0002269,2]
[311786734,1705389056897,-1044.85,0.0002269,2]
[311786735,1705389056908,-500.0,0.0002269,2]
[311786736,1705389056919,-509.29,0.0002269,2]
[311786737,1705389056930,-1112.52,0.0002269,2]
[311786738,1705389056941,-500.0,0.0002269,2]
[311786739,1705389056952,-1284.61,0.0002269,2]
[311786740,1705389056963,-630.0,0.0002269,2]
[311786741,1705389056973,-806.69,0.0002269,2]
[311786742,1705389056983,-1449.09,0.0002269,2]
[311786743,1705389056993,-2761.69,0.0002269,2]
[311786744,1705389057003,-500.0,0.0002269,2]
[311786745,1705389057013,-1982.86,0.0002269,2]
[311786746,1705389057023,-151.0,0.00022691,7]
[311786747,1705389057033,-215.167336,0.00022691,2]
[311786748,1705389057044,-215.167336,0.00022691,2]
[311786749,1705389057054,-151.0,0.00022691,7]
[311786750,1705389057064,-151.0,0.00022691,7]
[311786751,1705389057074,-151.0,0.00022691,7]
[311786752,1705389057083,-151.0,0.00022691,7]
[311786753,1705389057093,-151.0,0.00022691,7]
[311786754,1705389057103,-580.1,0.00022691,2]
[311786755,1705389057113,-581.76,0.00022691,2]
[311786756,1705389057123,-500.0,0.00022691,2]
[311786757,1705389057133,-500.0,0.00022691,2]
[311786758,1705389057142,-500.0,0.00022691,2]
[311786759,1705389057152,-500.0,0.00022691,2]
[311786760,1705389057161,-500.0,0.00022691,2]
[311786761,1705389057171,-500.0,0.00022691,2]
[311786762,1705389057181,-707.07,0.00022691,2]
[311786763,1705389057190,-605.1,0.00022691,2]
[311786764,1705389057199,-500.0,0.00022691,2]
[311786765,1705389057209,-500.0,0.00022691,2]
[311786766,1705389057218,-500.0,0.00022691,2]
[311786767,1705389057228,-500.0,0.00022691,2]
[311786768,1705389057237,-500.0,0.00022691,2]
[311786769,1705389057247,-500.0,0.00022691,2]
[311786770,1705389057257,-449.42854464,0.00022691,2]
[311786771,1705389057267,-500.0,0.00022691,2]
[311786772,1705389057276,-500.0,0.00022691,2]
[311786773,1705389057286,-500.0,0.00022691,2]
[311786774,1705389057296,-500.0,0.00022691,2]
[311786775,1705389057306,-544.87,0.00022691,2]
[311786776,1705389057315,-500.0,0.00022691,2]
[311786777,1705389057326,-595.84,0.00022691,2]
[311786778,1705389057336,-500.0,0.00022691,2]
[311786779,1705389057347,-500.0,0.00022691,2]
[311786780,1705389057357,-500.0,0.00022691,2]
[311786781,1705389057367,-535.5,0.00022691,2]
[311786782,1705389057377,-599.28,0.00022691,2]
[311786783,1705389057387,-462.49028069,0.00022691,2]
[311786784,1705389057398,-500.0,0.00022691,2]
[311786785,1705389057408,-500.0,0.00022691,2]
[311786786,1705389057418,-500.0,0.00022691,2]
[311786787,1705389057427,-500.0,0.00022691,2]
[311786788,1705389057439,-500.0,0.00022691,2]
[311786789,1705389057449,-500.0,0.00022691,2]
[311786790,1705389057459,-500.0,0.00022691,2]
[311786791,1705389057469,-518.92,0.00022691,2]
[311786792,1705389057479,-737.51,0.00022691,2]
[311786793,1705389057493,-500.0,0.00022691,2]
[311786794,1705389057505,-500.0,0.00022691,2]
[311786795,1705389057517,-500.0,0.00022691,2]
[311786796,1705389057529,-500.0,0.00022691,2]
[311786797,1705389057543,-500.0,0.00022691,2]
[311786798,1705389057554,-500.0,0.00022691,2]
[311786799,1705389057565,-500.0,0.00022691,2]
[311786800,1705389057575,-505.74,0.00022691,2]
[311786801,1705389057586,-500.0,0.00022691,2]
[311786802,1705389057598,-1083.05,0.00022691,2]
[311786803,1705389057611,-552.12,0.00022691,2]
[311786804,1705389057625,-500.0,0.00022691,2]
[311786805,1705389057635,-500.0,0.00022691,2]
[311786806,1705389057646,-610.65,0.00022691,2]
[311786807,1705389057656,-500.0,0.00022691,2]
[311786808,1705389057666,-500.0,0.00022691,2]
[311786809,1705389057677,-569.25,0.00022691,2]
[311786810,1705389057688,-500.0,0.00022691,2]
[311786811,1705389057698,-500.0,0.00022691,2]
[311786812,1705389057711,-500.0,0.00022691,2]
[311786813,1705389057722,-500.0,0.00022691,2]
[311786814,1705389057733,-500.0,0.00022691,2]
[311786815,1705389057744,-500.0,0.00022691,2]
[311786816,1705389057755,-500.0,0.00022691,2]
[311786817,1705389057768,-513.4,0.00022691,2]
[311786818,1705389057778,-500.0,0.00022691,2]
[311786819,1705389057788,-500.0,0.00022691,2]
[311786820,1705389057798,-500.0,0.00022691,2]
[311786821,1705389057809,-500.0,0.00022691,2]
[311786822,1705389057821,-500.0,0.00022691,2]
[311786823,1705389057832,-644.53,0.00022691,2]
[311786824,1705389057843,-500.0,0.00022691,2]
[311786825,1705389057854,-390.85287352,0.00022691,2]
[311786826,1705389057865,-500.0,0.00022691,2]
[311786827,1705389057874,-521.91,0.00022691,2]
[311786828,1705389057883,-500.0,0.00022691,2]
[311786829,1705389057893,-500.0,0.00022691,2]
[311786830,1705389057902,-500.0,0.00022691,2]
[311786831,1705389057912,-500.0,0.00022691,2]
[311786832,1705389057921,-500.0,0.00022691,2]
[311786833,1705389057930,-500.0,0.00022691,2]
[311786834,1705389058059,-500.0,0.00022691,2]
[311786835,1705389058068,-500.0,0.00022691,2]
[311786836,1705389058078,-500.0,0.00022691,2]
[311786837,1705389058087,-500.0,0.00022691,2]
[311786838,1705389058096,-500.0,0.00022691,2]
[311786839,1705389058105,-911.49,0.00022691,2]
[311786840,1705389058114,-539.88,0.00022691,2]
[311786841,1705389058123,-548.07,0.00022691,2]
[311786842,1705389058133,-500.0,0.00022691,2]
[311786843,1705389058141,-452.46742809,0.00022691,2]
[311786844,1705389058151,-500.0,0.00022691,2]
[311786845,1705389058160,-507.34,0.00022691,2]
[311786846,1705389058169,-500.0,0.00022691,2]
[311786847,1705389058178,-815.5,0.00022691,2]
[311786848,1705389058187,-932.43,0.00022691,2]
[311786849,1705389058196,-977.35,0.00022691,2]
[311786850,1705389058206,-500.0,0.00022691,2]
[311786851,1705389058215,-500.0,0.00022691,2]
[311786852,1705389058224,-500.0,0.00022691,2]
[311786853,1705389058233,-500.0,0.00022691,2]
[311786854,1705389058243,-500.0,0.00022691,2]
[311786855,1705389058252,-500.0,0.00022691,2]
[311786856,1705389058261,-1091.6,0.00022691,2]
[311786857,1705389058270,-516.71,0.00022691,2]
[311786858,1705389058279,-500.0,0.00022691,2]
[311786859,1705389058288,-500.0,0.00022691,2]
[311786860,1705389058297,-500.0,0.00022691,2]
[311786861,1705389058306,-500.0,0.00022691,2]
[311786862,1705389058316,-500.0,0.00022691,2]
[311786863,1705389058325,-500.89,0.00022691,2]
[311786864,1705389058334,-500.0,0.00022691,2]
[311786865,1705389058343,-500.0,0.00022691,2]
[311786866,1705389058353,-500.0,0.00022691,2]
[311786867,1705389058362,-500.0,0.00022691,2]
[311786868,1705389058371,-500.0,0.00022691,2]
[311786869,1705389058381,-500.0,0.00022691,2]
[311786870,1705389058390,-500.0,0.00022691,2]
[311786871,1705389058399,-500.0,0.00022691,2]
[311786872,1705389058409,-515.15,0.00022691,2]
[311786873,1705389058418,-500.0,0.00022691,2]
[311786874,1705389058427,-500.0,0.00022691,2]
[311786875,1705389058437,-500.0,0.00022691,2]
[311786876,1705389058446,-928.83,0.00022691,2]
[311786877,1705389058455,-500.0,0.00022691,2]
[311786878,1705389058464,-500.0,0.00022691,2]
[311786879,1705389058474,-500.0,0.00022691,2]
[311786880,1705389058483,-500.0,0.00022691,2]
[311786881,1705389058492,-500.0,0.00022691,2]
[311786882,1705389058503,-634.67,0.00022691,2]
[311786883,1705389058512,-510.2,0.00022691,2]
[311786884,1705389058522,-500.0,0.00022691,2]
[311786885,1705389058530,-500.0,0.00022691,2]
[311786886,1705389058539,-500.0,0.00022691,2]
[311786887,1705389058549,-500.0,0.00022691,2]
[311786888,1705389058558,-515.1,0.00022691,2]
[311786889,1705389058568,-984.64,0.00022691,2]
[311786890,1705389058577,-806.29,0.00022691,2]
[311786891,1705389058586,-500.0,0.00022691,2]
[311786892,1705389058596,-661.76,0.00022691,2]
[311786893,1705389058605,-500.0,0.00022691,2]
[311786894,1705389058615,-500.0,0.00022691,2]
[311786895,1705389058627,-394.21480348,0.00022691,2]
[311786896,1705389058637,-797.86,0.00022691,2]
[311786897,1705389058646,-586.62,0.00022691,2]